bitfinex/quotes_ETHUSD_20250214
["timestamp","ask_amount","ask_price","bid_price","bid_amount"]
[1739534040593,3.71761,2689.9,2689.8,3.94919091]
[1739534040794,3.71797,2689.7,2689.3,11.24609907]
[1739534041009,3.71775,2689.8,2689.3,14.96450907]
[1739534041148,3.71775,2689.8,2689.4,3.0]
[1739534041701,3.71795,2689.7,2689.4,3.0]
[1739534041898,3.71775,2689.8,2689.4,4.575389]
[1739534042046,0.8053,2689.9,2689.5,3.71815]
[1739534043210,0.8053,2690.2,2689.7,6.71785]
[1739534043353,3.71719,2690.2,2689.8,3.71774]
[1739534043756,0.74426187,2690.3,2689.8,3.71774]
[1739534044084,0.74426187,2690.3,2689.9,4.389364]
[1739534044286,0.74426187,2690.3,2689.9,0.671774]
[1739534044287,4.46141187,2690.3,2689.9,0.671774]
[1739534044486,4.46141187,2690.3,2689.9,3.671774]
[1739534045002,3.71721,2690.2,2689.9,3.671774]
[1739534045203,3.71741,2690.1,2689.9,3.0]
[1739534045354,7.43484,2690.1,2689.9,3.0]
[1739534045554,3.71741,2690.1,2689.9,3.0]
[1739534045783,3.71747,2690.0,2689.9,3.0]
[1739534045965,3.71734,2690.1,2689.9,3.0]
[1739534047105,3.71781,2689.8,2689.6,3.0]
[1739534047304,7.43565,2689.8,2689.6,3.0]
[1739534047517,3.71781,2689.8,2689.6,3.0]
[1739534047655,7.43565,2689.8,2689.6,3.0]
[1739534048112,3.71788,2689.7,2689.6,3.0]
[1739534048644,4.48142,2689.6,2689.5,5.25]
[1739534051196,3.71837,2689.4,2688.9,6.71897]
[1739534051391,3.71817,2689.5,2688.9,10.43788]
[1739534051599,3.71817,2689.5,2689.0,0.0811483]
[1739534052405,0.7634,2689.6,2689.0,0.0811483]
[1739534052729,3.71823,2689.5,2689.0,8.03278413]
[1739534053029,3.71823,2689.5,2689.0,4.31394413]
[1739534053627,0.7634,2689.6,2689.1,3.71861]
[1739534053776,0.7634,2689.8,2689.2,3.99636]
[1739534053980,4.48116,2689.8,2689.3,6.71838]
[1739534054218,4.48116,2689.8,2689.3,7.789854]
[1739534054529,3.71789,2689.7,2689.3,7.789854]
[1739534054823,4.48094,2690.0,2689.3,10.28590307]
[1739534055028,3.71783,2689.8,2689.3,10.28590307]
[1739534055231,3.71783,2689.8,2689.4,1.05638031]
[1739534055395,3.71797,2689.7,2689.3,6.56757307]
[1739534056313,3.71824,2689.5,2689.3,1.071474]
[1739534056512,3.71824,2689.5,2689.2,0.2779]
[1739534056835,3.71824,2689.5,2689.1,3.0]
[1739534057185,3.71811,2689.6,2689.1,3.0]
[1739534057536,3.71811,2689.6,2689.1,6.72613]
[1739534058561,3.71821,2689.5,2689.1,3.0075]
[1739534058764,3.71821,2689.5,2689.2,1.07331049]
[1739534059060,3.71803,2689.6,2689.2,1.07331049]
[1739534060864,4.48097,2690.0,2689.3,3.71842]
[1739534061062,3.71789,2689.7,2689.3,3.0]
[1739534061290,3.71789,2689.7,2689.1,3.0]
[1739534061291,4.50155,2689.5,2689.1,3.0]
[1739534062395,3.71804,2689.6,2689.1,6.71863]
[1739534062591,0.7833,2689.7,2689.3,3.0]
[1739534062794,7.43566,2689.8,2689.3,6.71842]
[1739534062945,3.71781,2689.8,2689.3,7.762109]
[1739534063147,3.71781,2689.8,2689.3,4.043689]
[1739534063385,3.71797,2689.7,2689.3,4.043689]
[1739534063805,3.71797,2689.7,2689.3,7.762119]
[1739534064165,3.71797,2689.7,2689.3,4.043689]
[1739534064369,4.50092,2689.9,2689.4,0.7762189]
[1739534064370,3.71775,2689.8,2689.4,0.7762189]
[1739534064678,3.71775,2689.8,2689.4,1.0541189]
[1739534065039,3.71796,2689.7,2689.4,1.0541189]
[1739534065244,3.71796,2689.7,2689.4,0.2779]
[1739534065493,3.71775,2689.8,2689.4,0.2779]
[1739534065649,0.7833,2689.9,2689.4,3.99618]
[1739534065851,3.71775,2689.8,2689.4,3.2779]
[1739534066198,3.71796,2689.7,2689.4,0.2779]
[1739534066705,3.71775,2689.8,2689.4,0.2779]
[1739534066853,3.71791,2689.7,2689.4,0.2779]
[1739534067201,3.71791,2689.7,2689.2,3.99638]
[1739534067383,3.71791,2689.7,2689.3,0.699638]
[1739534067703,3.71775,2689.8,2689.4,3.0]
[1739534068501,7.43512,2690.0,2689.5,0.2779]
[1739534068706,0.7833,2690.1,2689.5,0.2779]
[1739534068863,0.74426187,2690.3,2689.7,6.71786]
[1739534069066,4.46138187,2690.3,2689.9,3.0]
[1739534069250,0.74426187,2690.3,2689.9,6.99543]
[1739534069456,3.71698,2690.4,2689.9,6.99543]
[1739534069655,3.71716,2690.3,2689.9,3.2779]
[1739534069891,3.71716,2690.3,2689.9,4.3845988]
[1739534070074,3.7169,2690.5,2689.9,8.1021288]
[1739534070257,3.7169,2690.5,2689.9,4.3845988]
[1739534070598,3.71705,2690.4,2689.9,4.3845988]
[1739534070807,4.49995,2690.6,2689.9,8.1021188]
[1739534070945,0.7833,2690.6,2690.1,6.71732]
[1739534071151,7.43369,2690.5,2690.0,3.0]
[1739534071382,3.71695,2690.4,2690.0,4.05982179]
[1739534072564,0.7833,2690.6,2690.1,3.72476]
[1739534072565,4.49996,2690.6,2690.1,3.72476]
[1739534072721,3.71666,2690.6,2690.1,3.72476]
[1739534072878,3.71666,2690.6,2690.1,4.78061809]
[1739534073527,3.71703,2690.4,2690.1,1.05585809]
[1739534073687,7.43408,2690.4,2690.0,3.0]
[1739534074402,0.7833,2690.8,2690.0,3.0]
[1739534074403,3.71731,2690.2,2690.0,3.0]
[1739534074741,3.71774,2689.8,2689.6,0.2779]
[1739534075042,3.71711,2690.3,2689.4,0.2779]
[1739534075043,3.71788,2689.7,2689.4,0.2779]
[1739534075390,3.71802,2689.6,2689.4,3.2779]
[1739534076057,3.71802,2689.6,2689.4,3.85529991]
[1739534077242,3.71816,2689.5,2689.4,3.85529991]
[1739534083358,3.71846,2689.3,2689.2,0.2779]
[1739534083496,3.71832,2689.4,2689.2,0.2779]
[1739534083697,3.71843,2689.3,2689.2,3.2779]
[1739534085539,3.71843,2689.3,2689.2,3.0]
[1739534094465,3.71808,2689.6,2689.2,3.0]
[1739534094668,3.71782,2689.8,2689.3,7.68920107]
[1739534094823,3.71782,2689.8,2689.4,3.0]
[1739534095206,3.71788,2689.7,2689.4,3.0]
[1739534095467,3.71804,2689.6,2689.4,4.06894211]
[1739534095760,3.71816,2689.5,2689.4,3.0]
[1739534095967,3.7183,2689.4,2689.2,3.0]
[1739534096265,3.71843,2689.3,2689.2,3.0]
[1739534097360,3.71843,2689.3,2689.1,5.25]
[1739534097361,3.71871,2689.1,2689.0,2.49609907]
[1739534097850,3.71871,2689.1,2689.0,5.57747378]
[1739534098462,3.71843,2689.3,2689.0,5.57747378]
[1739534099294,7.43699,2689.3,2689.0,5.57747378]
[1739534099455,7.43695,2689.3,2689.0,5.57747378]
[1739534099990,7.43695,2689.3,2689.0,6.53491716]
[1739534100279,3.7186,2689.2,2689.0,6.53491716]
[1739534100484,3.71858,2689.2,2689.0,6.53491716]
[1739534100689,7.43698,2689.3,2689.0,6.53491716]
[1739534100836,3.71845,2689.3,2689.0,6.53491716]
[1739534101188,3.71845,2689.3,2689.1,0.68128172]
[1739534102161,7.43697,2689.3,2689.1,0.68128172]
[1739534102336,3.71845,2689.3,2689.1,0.68128172]
[1739534103245,3.71825,2689.5,2689.1,0.68128172]
[1739534103388,4.53626,2689.8,2689.3,2.49609907]
[1739534103594,4.53626,2689.8,2689.3,7.11006715]
[1739534103793,3.71776,2689.8,2689.3,7.11006715]
[1739534104048,4.53606,2690.0,2689.6,5.49609907]
[1739534104212,4.4598861,2690.1,2689.6,9.21402907]
[1739534104396,0.7425361,2690.1,2689.6,9.21402907]
[1739534104594,4.53578,2690.2,2689.8,0.2779]
[1739534105124,0.8185,2690.2,2689.8,0.2779]
[1739534105441,3.71719,2690.2,2689.8,0.2779]
[1739534105646,3.71707,2690.3,2689.8,3.99559]
[1739534106342,3.71713,2690.3,2689.8,3.99563]
[1739534106574,3.71699,2690.4,2689.8,4.3192132]
[1739534106706,7.43401,2690.4,2689.9,3.71759]
[1739534107360,3.71699,2690.4,2689.9,3.71759]
[1739534107858,4.47918657,2690.8,2690.0,6.72488]
[1739534107859,3.71673,2690.6,2690.0,6.72488]
[1739534108009,3.71661,2690.7,2690.2,3.0]
[1739534109455,3.71672,2690.6,2690.1,4.72499791]
[1739534109826,3.71603,2691.1,2690.5,4.00968]
[1739534109827,3.71602,2691.1,2690.5,4.00968]
[1739534110028,3.71602,2691.1,2690.7,2.49609907]
[1739534110564,0.7996,2691.4,2690.7,2.49609907]
[1739534110770,3.71618,2691.0,2690.7,2.49609907]
[1739534111921,3.71589,2691.2,2690.7,2.49609907]
[1739534112261,3.71589,2691.2,2690.7,9.21247907]
[1739534112420,3.71589,2691.2,2690.7,5.49609907]
[1739534112619,0.7996,2691.4,2690.7,3.0]
[1739534112936,3.7168,2690.5,2690.2,8.75]
[1739534113116,3.71712,2690.3,2689.9,0.2779]
[1739534113469,3.71712,2690.3,2690.0,0.90653123]
[1739534113633,3.71683,2690.5,2689.9,3.2779]
[1739534113828,3.71683,2690.5,2689.9,0.2779]
[1739534114061,3.71699,2690.4,2689.9,0.2779]
[1739534114569,3.71708,2690.3,2689.9,3.2779]
[1739534115174,3.71695,2690.4,2689.9,6.99549]
[1739534115318,3.71695,2690.4,2690.0,0.94915891]
[1739534115969,3.71651,2690.7,2690.1,3.0]
[1739534116172,3.71679,2690.5,2690.1,3.0]
[1739534116374,3.71692,2690.4,2690.1,3.0]
[1739534116933,3.71678,2690.5,2689.9,0.2779]
[1739534117139,3.71691,2690.4,2689.9,0.2779]
[1739534117718,0.7996,2690.6,2690.0,3.0]
[1739534117923,3.71686,2690.5,2690.0,3.0]
[1739534118240,3.71686,2690.5,2690.0,6.71744]
[1739534119141,0.7996,2690.6,2690.1,2.49609907]
[1739534119463,0.27,2691.4,2690.4,0.2779]
[1739534119464,0.7996,2690.9,2690.4,0.2779]
[1739534119629,7.43237,2691.0,2690.4,6.49081907]
[1739534120046,3.71623,2690.9,2690.4,7.51309998]
[1739534120243,3.71609,2691.0,2690.5,3.565]
[1739534120477,7.43184,2691.2,2690.5,7.28164]
[1739534120674,3.7159,2691.2,2690.7,2.49609907]
[1739534121326,0.8186,2691.3,2690.7,5.49609907]
[1739534121561,4.5344,2691.3,2690.8,4.63761091]
[1739534121976,3.71563,2691.4,2691.0,2.49609907]
[1739534121977,3.71556,2691.4,2691.0,2.49609907]
[1739534122121,3.71556,2691.4,2690.9,0.2779]
[1739534122327,3.71582,2691.2,2690.9,0.2779]
[1739534122726,3.71654,2690.7,2690.5,5.25]
[1739534123149,3.71654,2690.7,2690.6,3.0]
[1739534123762,3.71664,2690.6,2690.5,5.25]
[1739534124535,3.71654,2690.7,2690.5,5.25]
[1739534125035,3.71664,2690.6,2690.5,5.25]
[1739534125281,3.71654,2690.7,2690.2,3.0]
[1739534125448,3.71678,2690.5,2690.2,3.0]
[1739534125654,7.43364,2690.5,2690.2,3.0]
[1739534126253,3.71678,2690.5,2690.2,3.0]
[1739534126774,3.71705,2690.3,2690.0,0.2779]
[1739534126935,3.71705,2690.3,2690.0,1.3213951]
[1739534127130,3.71705,2690.3,2690.0,4.3213951]
[1739534127367,3.71686,2690.5,2690.0,4.3213951]
[1739534127546,3.71686,2690.5,2690.0,8.0387451]
[1739534128133,3.71657,2690.7,2690.2,3.72462]
[1739534128331,3.71657,2690.7,2690.3,0.62207191]
[1739534129086,3.71657,2690.7,2690.3,3.62207191]
[1739534129633,3.71652,2690.7,2690.3,3.62207191]
[1739534129832,3.71675,2690.6,2690.3,3.62207191]
[1739534132178,0.8186,2690.9,2690.3,3.62207191]
[1739534132581,3.71648,2690.8,2690.4,1.25966719]
[1739534132819,3.71619,2691.0,2690.5,0.2779]
[1739534132971,0.7761,2691.1,2690.5,0.2779]
[1739534133172,3.71657,2690.7,2690.5,0.2779]
[1739534133494,3.7167,2690.6,2690.3,3.89997191]
[1739534133671,3.71657,2690.7,2690.3,3.89997191]
[1739534135293,7.43315,2690.7,2690.3,3.89997191]
[1739534135588,3.71644,2690.8,2690.4,1.28745419]
[1739534136086,3.71658,2690.7,2690.4,1.28745419]
[1739534136288,3.71635,2690.9,2690.4,1.28745419]
[1739534136638,3.7164,2690.8,2690.4,1.28745419]
[1739534137288,3.71653,2690.7,2690.4,1.28745419]
[1739534137454,3.71653,2690.7,2690.3,3.89997191]
[1739534138654,3.7164,2690.8,2690.3,3.89997191]
[1739534138839,3.71658,2690.7,2690.3,3.2779]
[1739534141106,3.7164,2690.8,2690.4,3.71691]
[1739534141706,3.71634,2690.9,2690.4,3.71691]
[1739534141870,3.71637,2690.8,2690.4,3.71691]
[1739534142074,4.46504264,2691.3,2690.4,3.71691]
[1739534142075,1.57622264,2691.3,2690.4,3.71691]
[1739534142275,3.71615,2691.0,2690.6,6.71661]
[1739534142475,3.71617,2691.0,2690.6,3.0]
[1739534142813,3.71623,2690.9,2690.6,3.0]
[1739534143112,3.71623,2690.9,2690.6,8.25]
[1739534143309,3.71623,2690.9,2690.7,1.196675]
[1739534143460,3.71616,2691.0,2690.7,1.196675]
[1739534144108,3.71626,2690.9,2690.7,1.196675]
[1739534144618,3.71636,2690.8,2690.7,1.196675]
[1739534144966,3.71636,2690.8,2690.6,8.25]
[1739534145216,3.7165,2690.7,2690.6,8.25]
[1739534145517,3.7165,2690.7,2690.6,5.25]
[1739534145877,4.5434,2690.7,2690.6,5.25]
[1739534149019,4.5434,2690.7,2689.8,6.71774]
[1739534149020,0.8269,2690.7,2690.0,3.71746]
[1739534149200,3.71701,2690.4,2690.0,1.81812991]
[1739534150465,3.71688,2690.5,2690.0,1.81812991]
[1739534150755,3.71705,2690.3,2690.0,1.81812991]
[1739534151453,3.71626,2690.9,2690.0,1.81812991]
[1739534151454,4.54491,2691.0,2690.3,3.71704]
[1739534151602,3.71643,2690.8,2690.3,4.66684391]
[1739534151801,3.71643,2690.8,2690.3,4.66683391]
[1739534152216,3.71643,2690.8,2690.3,8.38381391]
[1739534152560,3.71619,2691.0,2690.4,0.2779]
[1739534152761,3.71633,2690.9,2690.4,0.2779]
[1739534153070,3.71658,2690.7,2690.4,0.2779]
[1739534153357,3.71678,2690.5,2690.2,3.2779]
[1739534153560,7.43325,2690.7,2690.2,3.2779]
[1739534153860,3.71667,2690.6,2690.2,3.2779]
[1739534155237,3.71685,2690.5,2690.2,3.2779]
[1739534155491,3.71685,2690.5,2690.1,2.49609907]
[1739534155663,3.71685,2690.5,2690.1,1.00490291]
[1739534156038,7.43371,2690.5,2690.1,1.00490291]
[1739534156342,3.71685,2690.5,2690.1,1.00490291]
[1739534157290,3.71669,2690.6,2690.2,3.0]
[1739534158378,3.71658,2690.7,2690.3,0.2779]
[1739534158749,0.8288,2690.8,2690.3,0.2779]
[1739534158750,3.71665,2690.6,2690.3,0.2779]
[1739534158952,4.54519,2690.8,2690.3,0.2779]
[1739534159216,4.54519,2690.8,2690.3,1.3275222]
[1739534159522,3.71639,2690.8,2690.3,5.0444822]
[1739534160416,3.71664,2690.6,2690.3,1.3275222]
[1739534160582,3.71664,2690.6,2690.3,0.2779]
[1739534161272,7.43337,2690.6,2690.3,0.2779]
[1739534161728,3.71664,2690.6,2690.3,0.2779]
[1739534163719,3.71644,2690.8,2690.3,0.2779]
[1739534163906,3.71644,2690.8,2690.4,0.699507]
[1739534164064,3.71624,2690.9,2690.4,4.416327]
[1739534164481,3.71643,2690.8,2690.4,0.699507]
[1739534164708,7.43255,2690.9,2690.4,4.416347]
[1739534164922,3.71644,2690.8,2690.4,0.699507]
[1739534165275,3.71644,2690.8,2690.4,3.699507]
[1739534165501,3.71622,2690.9,2690.5,0.7694407]
[1739534165819,3.71604,2691.1,2690.7,0.2779]
[1739534166177,3.71611,2691.0,2690.7,2.77399907]
[1739534166377,3.71604,2691.1,2690.7,2.77399907]
[1739534166593,7.43212,2691.1,2690.8,0.64905791]
[1739534166807,3.7161,2691.0,2690.8,0.64905791]
[1739534167133,3.71604,2691.1,2690.7,2.77399907]
[1739534167989,3.71619,2691.0,2690.7,2.77399907]
[1739534168189,3.71604,2691.1,2690.7,0.2779]
[1739534168418,3.71606,2691.1,2690.7,0.2779]
[1739534169027,3.71596,2691.1,2690.7,0.2779]
[1739534169229,3.71615,2691.0,2690.7,0.2779]
[1739534169393,3.71596,2691.1,2690.8,0.32779]
[1739534169824,0.8257,2691.3,2690.8,0.32779]
[1739534170019,3.71595,2691.1,2690.8,0.32779]
[1739534171439,3.71584,2691.2,2690.8,0.32779]
[1739534171604,0.8257,2691.5,2691.2,3.0]
[1739534171940,3.71562,2691.4,2691.0,2.49609907]
[1739534172437,3.71553,2691.4,2691.0,2.49609907]
[1739534172589,7.43116,2691.4,2690.9,7.148376]
[1739534173134,3.7157,2691.3,2690.9,7.148376]
[1739534173450,3.71553,2691.4,2691.0,1.2726166]
[1739534174221,3.71534,2691.6,2691.1,0.2779]
[1739534174439,3.7154,2691.5,2691.1,3.2779]
[1739534174950,3.71506,2691.8,2691.1,6.99381]
[1739534175252,3.71506,2691.8,2691.2,3.71581]
[1739534175454,3.71536,2691.6,2691.3,1.070962]
[1739534175751,3.71536,2691.6,2691.1,3.2779]
[1739534175918,3.71536,2691.6,2691.1,6.99383]
[1739534176124,3.71536,2691.6,2691.1,10.70971]
[1739534176320,3.71536,2691.6,2691.1,6.99378]
[1739534176537,3.71508,2691.8,2691.4,3.0]
[1739534176708,3.71518,2691.7,2691.4,0.671566]
[1739534176912,3.71538,2691.6,2691.1,6.99375]
[1739534177211,3.71526,2691.6,2691.1,6.99375]
[1739534177425,3.71526,2691.6,2691.3,3.0]
[1739534177621,3.71506,2691.8,2691.3,3.71567]
[1739534178064,3.71519,2691.7,2691.1,10.70958]
[1739534178354,7.4304,2691.7,2691.2,1.44782957]
[1739534178538,3.71519,2691.7,2691.2,1.44782957]
[1739534178735,3.71539,2691.6,2691.3,3.0]
[1739534179758,3.71519,2691.7,2691.3,3.0]
[1739534179923,3.71553,2691.4,2691.3,3.0]
[1739534180248,3.71567,2691.3,2691.2,5.25]
[1739534180452,0.7917,2691.5,2691.2,5.25]
[1739534180756,3.71555,2691.4,2691.2,5.25]
[1739534181056,7.43119,2691.4,2691.2,5.25]
[1739534181229,3.71555,2691.4,2691.2,5.25]
[1739534181754,3.71555,2691.4,2691.2,6.20226166]
[1739534182131,3.71531,2691.6,2691.2,6.20226166]
[1739534182458,3.7154,2691.5,2691.2,5.25]
[1739534183756,3.71554,2691.4,2691.2,5.25]
[1739534183942,3.71531,2691.6,2691.2,5.25]
[1739534184143,3.71542,2691.5,2691.2,5.25]
[1739534184655,4.50683,2691.7,2691.2,3.71578]
[1739534184857,4.50683,2691.7,2691.2,3.99368]
[1739534185057,4.50686,2691.7,2691.2,3.99368]
[1739534185362,3.71526,2691.6,2691.2,3.99368]
[1739534185717,3.7154,2691.5,2691.2,3.2779]
[1739534185932,0.7917,2691.7,2691.2,0.2779]
[1739534186146,4.50686,2691.7,2691.3,3.7156]
[1739534186344,8.22206,2691.7,2691.2,0.2779]
[1739534186559,8.22209,2691.7,2691.2,3.99362]
[1739534186856,3.71513,2691.7,2691.2,2.25071657]
[1739534187158,3.71495,2691.9,2691.3,3.75274573]
[1739534187347,3.71498,2691.8,2691.3,3.71559]
[1739534187549,1.51918103,2692.0,2691.3,5.25]
[1739534187854,3.71522,2691.7,2691.3,5.25]
[1739534188080,3.71522,2691.7,2691.4,1.12165066]
[1739534188267,3.71553,2691.4,2691.3,5.25]
[1739534190536,3.71577,2691.3,2691.0,0.2779]
[1739534191066,3.71575,2691.3,2690.9,3.0]
[1739534191224,3.71575,2691.3,2691.0,0.699413]
[1739534191648,3.71581,2691.2,2690.8,0.2779]
[1739534191842,3.71575,2691.3,2690.8,0.2779]
[1739534192043,7.4315,2691.3,2690.8,0.2779]
[1739534192266,3.71575,2691.3,2690.8,0.2779]
[1739534193665,7.43153,2691.3,2690.8,0.2779]
[1739534194564,3.71585,2691.2,2690.8,2.12435691]
[1739534196777,3.71561,2691.4,2690.9,6.71612]
[1739534196980,3.71553,2691.4,2690.9,6.71612]
[1739534198894,3.71553,2691.4,2691.1,3.0]
[1739534199048,3.71522,2691.7,2691.1,3.0]
[1739534199049,3.71543,2691.5,2691.1,3.0]
[1739534199250,3.71555,2691.4,2690.9,6.71612]
[1739534199572,3.71555,2691.4,2691.0,0.88404769]
[1739534202394,3.71543,2691.5,2691.0,0.88404769]
[1739534202600,3.71543,2691.5,2691.1,3.0]
[1739534202742,3.71557,2691.4,2691.1,3.0]
[1739534203380,3.71557,2691.4,2691.0,0.88404769]
[1739534204443,3.71557,2691.4,2691.1,3.0]
[1739534204682,3.71557,2691.4,2691.0,0.88404769]
[1739534204984,3.71574,2691.3,2691.0,0.88404769]
[1739534206070,3.71574,2691.3,2690.9,3.0]
[1739534206989,3.7155,2691.5,2690.9,6.71621]
[1739534207140,4.50035,2691.7,2690.9,3.0]
[1739534207347,3.71574,2691.3,2690.9,3.0]
[1739534209697,4.50035,2691.7,2690.9,3.0]
[1739534209993,3.71577,2691.3,2690.9,3.0]
[1739534211187,3.71541,2691.5,2690.9,6.71613]
[1739534211579,3.7157,2691.3,2690.9,6.71613]
[1739534212264,3.7157,2691.3,2690.9,3.0]
[1739534213706,3.7157,2691.3,2690.9,6.71621]
[1739534213874,3.7157,2691.3,2690.9,7.787268]
[1739534216722,3.7156,2691.4,2690.9,7.787268]
[1739534217527,3.71548,2691.5,2690.9,7.787268]
[1739534217732,3.7157,2691.3,2690.9,7.787268]
[1739534219541,7.43095,2691.5,2691.1,3.0]
[1739534219734,3.71547,2691.5,2691.1,3.0]
[1739534219934,3.71556,2691.4,2691.1,3.0]
[1739534220309,3.71556,2691.4,2690.9,7.787258]
[1739534220930,3.71556,2691.4,2691.1,3.0]
[1739534221548,3.71556,2691.4,2690.9,1.071058]
[1739534221691,3.71535,2691.6,2691.0,4.1509458]
[1739534222027,4.50034,2691.7,2691.2,0.2779]
[1739534222187,3.71533,2691.6,2691.2,0.2779]
[1739534222393,3.71541,2691.5,2691.2,0.2779]
[1739534222586,3.71541,2691.5,2691.2,1.02077258]
[1739534224358,0.7882,2691.9,2691.2,4.73656258]
[1739534224576,3.71516,2691.7,2691.2,4.73656258]
[1739534224922,3.71516,2691.7,2691.2,4.73650258]
[1739534225544,3.71516,2691.7,2691.2,4.73648258]
[1739534225663,3.71516,2691.7,2691.3,0.77364826]
[1739534225867,3.71526,2691.6,2691.3,0.77364826]
[1739534226366,0.7882,2691.9,2691.3,0.77364826]
[1739534226566,3.71517,2691.7,2691.3,0.77364826]
[1739534227773,3.71526,2691.6,2691.3,0.77364826]
[1739534228529,0.7882,2691.9,2691.3,0.77364826]
[1739534229037,3.71516,2691.7,2691.3,0.77364826]
[1739534229167,3.71516,2691.7,2691.4,0.55102008]
[1739534231093,3.71508,2691.8,2691.4,0.55102008]
[1739534231237,3.71521,2691.7,2691.4,0.55102008]
[1739534233832,3.71533,2691.6,2691.4,0.55102008]
[1739534234533,3.71507,2691.8,2691.4,0.55102008]
[1739534234739,0.72748103,2692.0,2691.7,3.0]
[1739534234945,3.71474,2692.0,2691.5,0.2779]
[1739534235140,3.71458,2692.1,2691.6,3.0]
[1739534235394,3.71487,2691.9,2691.5,0.2779]
[1739534235761,3.71487,2691.9,2691.5,3.2779]
[1739534236304,3.71487,2691.9,2691.5,8.217624]
[1739534236640,3.71468,2692.1,2691.5,8.217624]
[1739534236899,3.71477,2692.0,2691.5,8.217624]
[1739534238801,3.71477,2692.0,2691.5,8.217624]
[1739534240497,3.71484,2692.0,2691.5,8.217624]
[1739534241317,3.71458,2692.1,2691.6,3.71519]
[1739534241600,3.71477,2692.0,2691.7,1.1932814]
[1739534242541,3.71458,2692.1,2691.7,1.1932814]
[1739534242737,3.71483,2692.0,2691.7,1.1932814]
[1739534244328,3.71491,2691.9,2691.5,4.502234]
[1739534244484,3.71491,2691.9,2691.5,8.217574]
[1739534245185,3.71465,2692.1,2691.5,8.217574]
[1739534245384,3.71465,2692.1,2691.6,3.71514]
[1739534245585,3.71472,2692.0,2691.6,3.71514]
[1739534245814,3.71484,2692.0,2691.6,0.8217374]
[1739534246388,3.71484,2692.0,2691.5,8.217624]
[1739534247028,3.71489,2691.9,2691.5,8.217624]
[1739534247228,3.71489,2691.9,2691.5,4.502234]
[1739534247522,3.71489,2691.9,2691.5,3.2779]
[1739534247726,3.71511,2691.8,2691.5,3.2779]
[1739534248034,3.71522,2691.7,2691.5,3.0]
[1739534248333,0.7786,2692.0,2691.5,3.0]
[1739534248334,3.71509,2691.8,2691.5,3.0]
[1739534249633,3.7152,2691.7,2691.5,3.0]
[1739534249836,3.71553,2691.4,2691.0,0.2779]
[1739534250041,3.7154,2691.5,2691.0,0.2779]
[1739534250226,3.7156,2691.4,2691.0,3.2779]
[1739534252103,3.7154,2691.5,2691.0,3.2779]
[1739534252298,4.49395,2691.6,2691.1,3.71589]
[1739534252497,0.7786,2691.6,2691.2,6.71576]
[1739534252838,3.71541,2691.5,2691.0,5.218324]
[1739534253341,3.71541,2691.5,2691.0,1.502304]
[1739534253638,3.71541,2691.5,2691.2,3.0]
[1739534253813,3.71554,2691.4,2691.0,1.502304]
[1739534255142,3.71554,2691.4,2691.0,0.2779]
[1739534255444,3.71579,2691.3,2690.9,3.0]
[1739534255642,3.71603,2691.1,2690.7,0.2779]
[1739534255843,3.71638,2690.8,2690.4,5.25]
[1739534256136,3.71638,2690.8,2690.4,3.71691]
[1739534256137,0.371638,2690.7,2690.4,3.71691]
[1739534256341,3.71638,2690.8,2690.5,3.0]
[1739534256937,3.71617,2691.0,2690.5,3.0]
[1739534257143,3.71617,2691.0,2690.6,3.71664]
[1739534257345,0.8269,2691.2,2690.7,0.2779]
[1739534257535,3.71562,2691.4,2690.8,7.43252]
[1739534257536,8.25816,2691.4,2690.8,7.43252]
[1739534257702,8.25816,2691.4,2690.8,3.71624]
[1739534258046,3.71504,2691.8,2690.7,0.60569]
[1739534258047,0.8269,2691.8,2691.4,3.71546]
[1739534258229,0.8269,2691.8,2691.3,0.2779]
[1739534258544,3.71512,2691.7,2691.3,0.2779]
[1739534258741,3.71512,2691.7,2691.1,6.99378]
[1739534258904,7.43089,2691.5,2691.1,0.2779]
[1739534259105,3.7154,2691.5,2690.9,3.2779]
[1739534259308,0.8269,2691.4,2691.0,3.71608]
[1739534259736,0.8269,2691.4,2690.9,3.2779]
[1739534259939,0.8269,2691.4,2690.7,0.2779]
[1739534259940,3.71595,2691.1,2690.7,0.2779]
[1739534260266,4.54306,2691.0,2690.6,5.25]
[1739534260555,4.54306,2691.0,2690.3,3.99488]
[1739534260556,3.71625,2690.9,2690.3,3.99488]
[1739534260951,7.43257,2690.9,2690.4,3.0]
[1739534261216,3.71638,2690.8,2690.3,0.2779]
[1739534261542,3.71638,2690.8,2690.2,8.96706]
[1739534261741,3.71664,2690.6,2690.2,5.25]
[1739534261909,3.71685,2690.5,2690.2,5.25]
[1739534262108,3.71685,2690.5,2690.0,3.99535]
[1739534262308,7.43337,2690.6,2690.1,3.0]
[1739534262503,3.71664,2690.6,2690.0,3.2779]
[1739534262705,3.71664,2690.6,2690.1,3.71731]
[1739534262930,0.8269,2690.7,2690.3,3.71705]
[1739534263141,0.8269,2691.2,2690.8,3.71625]
[1739534263619,4.54276,2691.2,2690.6,3.71655]
[1739534263951,4.54276,2691.2,2690.7,3.71646]
[1739534264149,3.71598,2691.1,2690.6,3.71654]
[1739534264304,3.71613,2691.0,2690.5,3.0]
[1739534264631,3.71613,2691.0,2690.5,7.416229]
[1739534265165,3.71595,2691.1,2690.6,3.71664]
[1739534265660,8.25868,2691.2,2690.6,3.71664]
[1739534265962,4.54278,2691.2,2690.6,3.71664]
[1739534266153,8.25871,2691.2,2690.6,3.71657]